[Event "FIDE Open World Rapid 2024"]
[Site "New York"]
[Date "2024.12.27"]
[Round "7.16"]
[White "Tari, Aryan"]
[Black "Yu, Yangyi"]
[Result "0-1"]
[ECO "C47"]
[WhiteElo "2629"]
[BlackElo "2724"]
[Annotator "TA"]
[PlyCount "161"]
[EventDate "2024.12.14"]
[EventType "swiss"]
[EventCountry "USA"]
[SourceTitle "playchess.com"]
[Source "ChessBase"]
[SourceQuality "1"]
[TimeControl "900+10"]

{[%evp 110,161,0,-8,-8,-8,-8,-8,0,-8,0,-8,-8,-8,-8,-8,-8,-8,-8,-8,0,-8,-8,-8,-8,-8,0,-8,0,0,0,-8,0,-8,0,-8,0,-8,0,-8,0,-8,0,-8,0,-12823,-12822,-12822,-12819,-12796,-12623,-11215,-5474,-5065]} 1. e4 {[%emt 0:00:01]} e5 {[%emt 0:00:01]} 2. Nf3 {[%emt 0:00:02]} Nf6 {[%emt 0:00:04]} 3. Nc3 {[%emt 0:00:02]} Nc6 {[%emt 0:00:03]} 4. h3 {[%emt 0:00:02]} Bb4 {[%emt 0:00:57]} 5. a3 {[%emt 0:00:02]} Bxc3 {[%emt 0:00:14]} 6. dxc3 {[%emt 0:00:02]} d6 {[%emt 0:00:06]} 7. Bd3 {[%emt 0:00:02]} Ne7 {[%emt 0:00:21]} 8. Be3 {[%emt 0:01:40]} a5 {[%emt 0:00:37]} 9. Qe2 {[%emt 0:00:50]} Ng6 {[%emt 0:00:57]} 10. O-O-O {[%emt 0:00:09]} Qe7 {[%emt 0:00:15]} 11. g3 {[%emt 0:00:48]} Bd7 {[%emt 0:02:51]} 12. c4 {[%emt 0:00:56]} Bc6 {[%emt 0:00:41]} 13. Nd2 {[%emt 0:00:41]} Nd7 {[%emt 0:01:03]} 14. f4 {[%emt 0:01:44]} Nc5 {[%emt 0:01:02]} 15. f5 {[%emt 0:02:11]} Nf8 {[%emt 0:00:01]} 16. g4 {[%emt 0:01:07]} Nfd7 {[%emt 0:01:53]} 17. g5 {[%emt 0:00:17]} O-O-O {[%emt 0:00:02]} 18. b4 {[%emt 0:01:49]} Nxd3+ {[%emt 0:01:50]} 19. Qxd3 {[%emt 0:00:08]} h6 {[%emt 0:01:11]} 20. h4 {[%emt 0:00:48]} axb4 {[%emt 0:00:36]} 21. axb4 {[%emt 0:00:02]} b6 {[%emt 0:00:01]} 22. Nb1 {[%emt 0:00:25]} g6 {[%emt 0:00:13]} 23. f6 {[%emt 0:00:32]} Qe6 {[%emt 0:00:03]} 24. Nc3 {[%emt 0:00:22]} hxg5 {[%emt 0:00:06]} 25. hxg5 {[%emt 0:00:23]} Kb8 {[%emt 0:01:58]} 26. Nd5 {[%emt 0:01:00]} Bb7 {[%emt 0:00:40]} 27. Kb2 {[%emt 0:00:21]} Rxh1 {[%emt 0:00:52]} 28. Rxh1 {[%emt 0:00:03]} Qg4 {[%emt 0:00:10]} 29. Ra1 {[%emt 0:01:29]} Rh8 {[%emt 0:00:15]} 30. c5 {[%emt 0:01:09]} dxc5 {[%emt 0:00:11]} 31. bxc5 {[%emt 0:00:03]} Nxc5 {[%emt 0:00:09]} 32. Bxc5 {[%emt 0:00:20]} bxc5 {[%emt 0:00:01]} 33. Qc4 {[%emt 0:00:26]} Rd8 {[%emt 0:00:31]} 34. Qxc5 {[%emt 0:00:34]} Bxd5 {[%emt 0:00:01]} 35. exd5 {[%emt 0:00:09]} Qd4+ {[%emt 0:00:02]} 36. Qxd4 {[%emt 0:00:09]} exd4 {[%emt 0:00:01]} 37. Ra5 {[%emt 0:00:03]} Re8 {[%emt 0:00:33]} 38. d6 {[%emt 0:00:08]} cxd6 {[%emt 0:00:03]} 39. Rd5 {[%emt 0:00:01]} Kc7 {[%emt 0:00:14]} 40. Ra5 {[%emt 0:00:26]} Kd7 {[%emt 0:00:17]} 41. Kb3 {[%emt 0:00:11]} Ke6 {[%emt 0:00:24]} 42. Kc4 {[%emt 0:00:17]} Rc8+ {[%emt 0:00:01]} 43. Kxd4 {[%emt 0:00:06]} Rxc2 {[%emt 0:00:01]} 44. Ra7 {[%emt 0:00:02]} Rc5 {[%emt 0:00:12]} 45. Re7+ {[%emt 0:00:05]} Kf5 {[%emt 0:00:01]} 46. Rxf7 {[%emt 0:00:05]} Kxg5 {[%emt 0:00:03]} 47. Rd7 {[%emt 0:00:15]} Rf5 {[%emt 0:00:06]} 48. f7 {[%emt 0:00:06]} Kh6 {[%emt 0:00:27]} 49. Ke3 {[%emt 0:00:20]} Rf6 {[%emt 0:00:14]} 50. Rxd6 {[%emt 0:00:22]} Rxf7 {[%emt 0:00:00]} 51. Rd1 {[%emt 0:00:03]} g5 {[%emt 0:00:32]} 52. Rh1+ {[%emt 0:00:05]} Kg6 {[%emt 0:00:00]} 53. Rg1 {[%emt 0:00:01]} Rf4 {[%emt 0:00:25]} 54. Rb1 {[%emt 0:00:20]} Kf5 {[%emt 0:00:00]} 55. Ra1 {[%emt 0:00:14]} Kg6 {[%emt 0:00:21]} 56. Rg1 {[%emt 0:00:03]} Rf5 {[%emt 0:00:14]} 57. Ke4 {[%emt 0:00:06]} Rf8 {[%emt 0:00:04]} 58. Ke3 {[%emt 0:00:08]} Rf4 {[%emt 0:00:05]} 59. Rb1 {[%emt 0:00:07]} Rf6 {[%emt 0:00:01]} 60. Rg1 {[%emt 0:00:04]} Rf7 {[%emt 0:00:03]} 61. Ke4 {[%emt 0:00:06]} Rf5 {[%emt 0:00:19]} 62. Ke3 {[%emt 0:00:21]} Kh5 {[%emt 0:00:02]} 63. Ke4 $1 {[%emt 0:00:31]} Rf2 {[%emt 0:00:14]} 64. Ke3 {[%emt 0:00:03]} Rf5 {[%emt 0:00:20]} 65. Ke4 $1 {[%emt 0:00:01]} Rf4+ {[%emt 0:00:32]} 66. Ke3 {[%emt 0:00:02]} Rg4 {[%emt 0:00:08]} 67. Rb1 {[%emt 0:00:23]} Rf4 {[%emt 0:00:08]} 68. Rg1 {[%emt 0:00:08]} Rf8 {[%emt 0:00:03]} 69. Rh1+ {[%emt 0:00:05]} Kg6 {[%emt 0:00:00]} 70. Rg1 {[%emt 0:00:01]} Rf4 {[%emt 0:00:05]} 71. Rb1 {[%emt 0:00:02]} Kf5 {[%emt 0:00:02]} 72. Ra1 {[%emt 0:00:09]} Kg6 {[%emt 0:00:17]} (72... Kg4 $5) 73. Rg1 {[%emt 0:00:03]} Rf5 {[%emt 0:00:03]} 74. Ke4 {[%emt 0:00:03]} Rf8 {[%emt 0:00:02]} 75. Ke3 {[%emt 0:00:04]} Rf7 {[%emt 0:00:02]} 76. Ke4 {[%emt 0:00:08]} Rf5 {[%emt 0:00:06]} 77. Rg2 $2 {[%emt 0:00:36][%mdl 8192]} (77. Ke3 $11) 77... Rf1 $19 {[%emt 0:00:12]} 78. Rb2 {[%emt 0:00:44]} Kh5 {[%emt 0:00:14]} 79. Rh2+ {[%emt 0:00:12]} Kg4 {[%emt 0:00:01]} 80. Rg2+ {[%emt 0:00:06]} Kh4 {[%emt 0:00:01]} 81. Kd4 {[%emt 0:00:26]} 0-1

[Event "FIDE Open World Rapid 2024"]
[Site "New York"]
[Date "2024.12.27"]
[Round "7.16"]
[White "Kobalia, Mikhail"]
[Black "Sardana, Rishi"]
[Result "1/2-1/2"]
[ECO "B90"]
[WhiteElo "2543"]
[BlackElo "2466"]
[Annotator "ChessBase"]
[PlyCount "96"]
[EventDate "2024.12.14"]
[EventType "swiss"]
[EventCountry "USA"]
[SourceTitle "playchess.com"]
[Source "ChessBase"]
[SourceQuality "1"]
[TimeControl "900+10"]

1. e4 {[%emt 0:00:03]} c5 {[%emt 0:00:02]} 2. Nf3 {[%emt 0:00:02]} d6 {[%emt 0:00:08]} 3. d4 {[%emt 0:00:11]} cxd4 {[%emt 0:00:02]} 4. Nxd4 {[%emt 0:00:02]} Nf6 {[%emt 0:00:02]} 5. Nc3 {[%emt 0:00:01]} a6 {[%emt 0:00:02]} 6. Be3 {[%emt 0:00:03]} e5 {[%emt 0:00:02]} 7. Nb3 {[%emt 0:00:01]} Be6 {[%emt 0:00:03]} 8. Qd2 {[%emt 0:00:02]} Nbd7 {[%emt 0:00:07]} 9. O-O-O {[%emt 0:00:06]} b5 {[%emt 0:00:08]} 10. f3 {[%emt 0:00:22]} h5 {[%emt 0:00:51]} 11. Kb1 {[%emt 0:00:05]} Be7 {[%emt 0:00:43]} 12. h4 {[%emt 0:00:01]} O-O {[%emt 0:02:16]} 13. Bg5 {[%emt 0:00:07]} Qc7 {[%emt 0:01:27]} 14. a3 {[%emt 0:01:13]} Rfd8 {[%emt 0:00:35]} 15. g4 {[%emt 0:00:52]} Nb6 {[%emt 0:02:40]} 16. Bxf6 {[%emt 0:01:41]} Bxf6 {[%emt 0:00:01]} 17. g5 {[%emt 0:00:03]} Be7 {[%emt 0:00:02]} 18. Nd5 {[%emt 0:00:09]} Bxd5 {[%emt 0:00:01]} 19. exd5 {[%emt 0:00:01]} g6 {[%emt 0:00:51]} 20. Bd3 {[%emt 0:02:47]} Bf8 {[%emt 0:00:13]} 21. Rhe1 {[%emt 0:00:41]} Bg7 {[%emt 0:00:09]} 22. Bf1 {[%emt 0:00:16]} Nc4 {[%emt 0:02:55]} 23. Bxc4 {[%emt 0:02:13]} bxc4 {[%emt 0:00:01]} 24. Na5 {[%emt 0:00:02]} e4 {[%emt 0:00:30]} 25. Nc6 {[%emt 0:00:14]} c3 {[%emt 0:00:07]} 26. Qf4 {[%emt 0:00:16]} cxb2 {[%emt 0:01:42]} 27. Rxe4 {[%emt 0:00:05]} Re8 {[%emt 0:00:27]} 28. Rde1 {[%emt 0:01:39]} Rxe4 {[%emt 0:00:02]} 29. fxe4 {[%emt 0:00:02]} Rf8 {[%emt 0:01:06]} 30. e5 {[%emt 0:00:50]} dxe5 {[%emt 0:00:01]} 31. Qe4 {[%emt 0:00:03]} Rc8 {[%emt 0:01:21]} 32. Rd1 {[%emt 0:00:52]} Qd6 {[%emt 0:00:29]} 33. Rd3 {[%emt 0:00:03]} Rc7 {[%emt 0:00:28]} 34. Kxb2 {[%emt 0:00:53]} Rd7 {[%emt 0:00:14]} 35. Ka2 {[%emt 0:01:33]} Qc5 {[%emt 0:00:08]} 36. Rb3 {[%emt 0:00:18]} Kh7 {[%emt 0:00:06]} 37. c4 {[%emt 0:00:05]} Rd6 {[%emt 0:00:14]} 38. Rb7 {[%emt 0:00:15]} Qf2+ {[%emt 0:00:15]} 39. Rb2 {[%emt 0:00:01]} Qc5 {[%emt 0:00:01]} 40. Rb7 {[%emt 0:00:16]} Qf2+ {[%emt 0:00:01]} 41. Rb2 {[%emt 0:00:02]} Qc5 {[%emt 0:00:01]} 42. Rg2 {[%emt 0:00:31]} Rd7 {[%emt 0:00:09]} 43. Re2 {[%emt 0:00:17]} Rb7 {[%emt 0:00:17]} 44. Rb2 {[%emt 0:00:07]} Rc7 {[%emt 0:00:21]} 45. Rb3 {[%emt 0:00:21]} Qf2+ {[%emt 0:00:06]} 46. Rb2 {[%emt 0:00:01]} Qc5 {[%emt 0:00:01]} 47. Rb3 {[%emt 0:01:11]} Qf2+ {[%emt 0:00:02]} 48. Rb2 {[%emt 0:00:02]} Qc5 {[%emt 0:00:03]} 1/2-1/2

[Event "FIDE Open World Rapid 2024"]
[Site "New York"]
[Date "2024.12.27"]
[Round "7.17"]
[White "Lazavik, Denis"]
[Black "Praggnanandhaa R"]
[Result "1-0"]
[ECO "A47"]
[WhiteElo "2578"]
[BlackElo "2737"]
[Annotator "TA"]
[PlyCount "119"]
[EventDate "2024.12.14"]
[EventType "swiss"]
[EventCountry "USA"]
[SourceTitle "playchess.com"]
[Source "ChessBase"]
[SourceQuality "1"]
[TimeControl "900+10"]

{[%evp 9,119,0,11,6,6,5,12,11,14,14,7,8,18,9,16,0,25,0,0,-1,-9,-8,0,-16,13,0,18,0,6,-20,-9,-12,-12,-4,-12,-17,0,0,0,0,31,19,25,0,0,0,70,59,47,74,64,70,107,109,125,115,102,111,99,106,144,150,126,124,108,93,95,71,65,65,208,70,228,225,227,220,252,231,389,68,400,396,416,414,422,402,554,547,499,537,537,513,506,493,406,0,495,423,2983,2703,1455,1441,4589,4582,4566,1318,4662,2146,5623,5123,4866,4618]} 1. d4 {[%emt 0:00:03]} e6 {[%emt 0:00:03]} 2. Bf4 {[%emt 0:00:21]} Nf6 {[%emt 0:00:26]} 3. e3 {[%emt 0:00:08]} b6 {[%emt 0:00:32]} 4. Nf3 {[%emt 0:00:08]} Bb7 {[%emt 0:00:07]} 5. Bd3 {[%emt 0:00:14]} Nh5 {[%emt 0:00:56]} 6. Bg5 {[%emt 0:00:30]} Be7 {[%emt 0:00:02]} 7. Bxe7 {[%emt 0:02:21]} Qxe7 {[%emt 0:00:03]} 8. Nbd2 {[%emt 0:00:13]} f5 {[%emt 0:00:56]} 9. c3 {[%emt 0:01:16]} O-O {[%emt 0:02:26]} 10. O-O {[%emt 0:00:05]} c5 {[%emt 0:01:54]} 11. Re1 {[%emt 0:00:28]} Nc6 {[%emt 0:00:33]} 12. a3 {[%emt 0:00:24]} g5 {[%emt 0:01:08]} 13. h3 {[%emt 0:03:33]} Kh8 {[%emt 0:00:53]} 14. Nh2 {[%emt 0:00:18]} Nf6 {[%emt 0:01:24]} 15. b4 {[%emt 0:02:06]} cxd4 {[%emt 0:00:11]} 16. exd4 {[%emt 0:00:54]} Qg7 {[%emt 0:01:17]} 17. Nc4 {[%emt 0:00:05]} Rad8 {[%emt 0:00:24]} 18. Nd6 {[%emt 0:02:01]} Ba8 {[%emt 0:00:01]} 19. Bf1 {[%emt 0:00:05]} Ne7 {[%emt 0:00:34]} 20. c4 {[%emt 0:00:23]} Nc8 {[%emt 0:02:08]} 21. Nxc8 {[%emt 0:01:17]} Rxc8 {[%emt 0:00:03]} 22. Qd3 {[%emt 0:00:02]} g4 {[%emt 0:01:18]} 23. hxg4 {[%emt 0:00:04]} fxg4 {[%emt 0:00:01]} 24. Re5 {[%emt 0:00:31]} Rf7 {[%emt 0:00:16]} 25. Rae1 {[%emt 0:00:08]} Rcf8 {[%emt 0:00:14]} 26. d5 {[%emt 0:00:42]} exd5 {[%emt 0:00:51]} 27. cxd5 {[%emt 0:00:01]} Qg6 {[%emt 0:00:39]} (27... Nxd5 $11 28. Rxd5 Bxd5 29. Qxd5 Rxf2) 28. Qxg6 {[%emt 0:00:53]} (28. Qd2 {keeps more tension.} g3 29. fxg3 Qxg3 30. Rg5) 28... hxg6 {[%emt 0:00:01]} 29. d6 {[%emt 0:00:01]} Bd5 {[%emt 0:00:27]} 30. Bd3 {[%emt 0:00:03][%cal Oh2g4]} Be6 {[%emt 0:00:08]} 31. Bxg6 {[%emt 0:00:05] White has more active pieces.} Rg7 {[%emt 0:00:01]} 32. Bf5 $1 {[%emt 0:00:01]} Bxf5 {[%emt 0:00:09]} 33. Rxf5 {[%emt 0:00:01]} g3 {[%emt 0:00:00]} 34. fxg3 {[%emt 0:00:12]} Rxg3 {[%emt 0:00:01][%cal Oh8g8]} 35. Nf3 {[%emt 0:00:32]} Nh7 {[%emt 0:00:17]} 36. Rxf8+ {[%emt 0:00:35]} Nxf8 $16 {[%emt 0:00:01][%mdl 4096] Endgame KRN-KRN. White is a pawn up.} 37. Re7 {[%emt 0:00:02]} Kg8 {[%emt 0:00:19]} 38. Ne5 {[%emt 0:00:11]} Rxa3 {[%emt 0:00:28]} 39. Ng4 {[%emt 0:00:22]} Rd3 {[%emt 0:00:16]} (39... a5 $1 $14) 40. Nf6+ $18 {[%emt 0:00:07]} Kh8 {[%emt 0:00:01] [#]} 41. b5 $1 {[%emt 0:00:20] and Rf7 would now be decisive} Rxd6 {[%emt 0:00:13]} 42. Rf7 {[%emt 0:00:01]} Rd1+ {[%emt 0:00:17]} 43. Kf2 {[%emt 0:00:02]} ({Resist} 43. Kh2 Rd4 44. g4 (44. Rxf8+ Kg7 $18) 44... d6) 43... d5 $2 {[%emt 0:00:10]} (43... Rb1 {keeps fighting.} 44. Rxf8+ Kg7 45. Nxd7 Rxb5) 44. Rxf8+ {[%emt 0:00:06] KRN-KR} Kg7 {[%emt 0:00:01] [#]} 45. Nd7 $1 {[%emt 0:00:02]} Rb1 {[%emt 0:00:17]} 46. Ra8 {[%emt 0:00:02]} Rxb5 {[%emt 0:00:01]} 47. Rxa7 {[%emt 0:00:01]} Kg6 {[%emt 0:00:02]} 48. Rb7 {[%emt 0:00:16]} Rb2+ {[%emt 0:00:05]} 49. Kf3 {[%emt 0:00:01]} b5 {[%emt 0:00:03]} 50. Nc5 {[%emt 0:00:22]} Rb1 {[%emt 0:00:29]} 51. Rd7 {[%emt 0:00:33]} Rd1 {[%emt 0:00:05]} 52. Rb7 {[%emt 0:00:06]} Rb1 $1 {[%emt 0:00:02]} 53. Ne6 {[%emt 0:00:18]} Kf5 {[%emt 0:00:34]} (53... Kf6 $142 54. Nd4 Rd1) 54. Nd4+ {[%emt 0:00:07]} Ke5 {[%emt 0:00:01]} 55. Rxb5 {[%emt 0:00:10]} Rd1 {[%emt 0:00:09]} 56. Nc2 {[%emt 0:00:11]} Rf1+ {[%emt 0:00:10]} 57. Kg3 {[%emt 0:00:14]} Rc1 {[%emt 0:00:20]} 58. Ne3 {[%emt 0:00:02]} Rc3 {[%emt 0:00:10]} 59. Kf3 {[%emt 0:00:04]} Ke6 {[%emt 0:00:05]} 60. Rxd5 {[%emt 0:00:42]} 1-0

[Event "FIDE Open World Rapid 2024"]
[Site "New York"]
[Date "2024.12.27"]
[Round "7.17"]
[White "Harsha Bharathakoti"]
[Black "Damjanovic, Vuk"]
[Result "1-0"]
[ECO "A41"]
[WhiteElo "2531"]
[BlackElo "2368"]
[Annotator "ChessBase"]
[PlyCount "119"]
[EventDate "2024.12.14"]
[EventType "swiss"]
[EventCountry "USA"]
[SourceTitle "playchess.com"]
[Source "ChessBase"]
[SourceQuality "1"]
[TimeControl "900+10"]

1. d4 {[%emt 0:01:18]} d6 {[%emt 0:00:11]} 2. c4 {[%emt 0:00:13]} e5 {[%emt 0:00:05]} 3. Nf3 {[%emt 0:00:30]} e4 {[%emt 0:00:04]} 4. Ng5 {[%emt 0:01:09]} f5 {[%emt 0:00:02]} 5. g3 {[%emt 0:00:49]} Be7 {[%emt 0:00:16]} 6. h4 {[%emt 0:00:02]} Nf6 {[%emt 0:00:27]} 7. Nc3 {[%emt 0:00:07]} O-O {[%emt 0:00:38]} 8. e3 {[%emt 0:00:19]} Na6 {[%emt 0:00:46]} 9. b3 {[%emt 0:01:32]} c6 {[%emt 0:00:19]} 10. Be2 {[%emt 0:01:58]} Nc7 {[%emt 0:00:13]} 11. d5 {[%emt 0:00:36]} Nd7 {[%emt 0:03:27]} 12. Bb2 {[%emt 0:00:46]} c5 {[%emt 0:01:01]} 13. Nh3 {[%emt 0:02:11]} Ne5 {[%emt 0:00:41]} 14. Nf4 {[%emt 0:00:02]} a6 {[%emt 0:00:58]} 15. a4 {[%emt 0:00:43]} Bd7 {[%emt 0:00:41]} 16. a5 {[%emt 0:00:25]} Qe8 {[%emt 0:00:52]} 17. Qc2 {[%emt 0:01:04]} Bf6 {[%emt 0:00:11]} 18. h5 {[%emt 0:00:45]} Qe7 {[%emt 0:02:12]} 19. Nb1 {[%emt 0:00:17]} Nf7 {[%emt 0:01:11]} 20. Nd2 {[%emt 0:01:13]} Bxb2 {[%emt 0:00:15]} 21. Qxb2 {[%emt 0:00:02]} Qe5 {[%emt 0:00:01]} 22. Qxe5 {[%emt 0:00:18]} Nxe5 {[%emt 0:00:32]} 23. b4 {[%emt 0:00:32]} cxb4 {[%emt 0:00:36]} 24. Rb1 {[%emt 0:00:00]} Rab8 {[%emt 0:00:59]} 25. Rxb4 {[%emt 0:00:02]} b5 {[%emt 0:00:01]} 26. axb6 {[%emt 0:00:39]} a5 {[%emt 0:00:00]} 27. Rb2 {[%emt 0:01:20]} Na6 {[%emt 0:00:21]} 28. O-O {[%emt 0:00:07]} Nc5 {[%emt 0:00:27]} 29. Ra1 {[%emt 0:00:10]} a4 {[%emt 0:00:44]} 30. Bd1 {[%emt 0:00:36]} Rb7 {[%emt 0:00:51]} 31. Ne6 {[%emt 0:00:02]} Nxe6 {[%emt 0:00:24]} 32. dxe6 {[%emt 0:00:01]} Bxe6 {[%emt 0:00:01]} 33. Rxa4 {[%emt 0:00:25]} Rfb8 {[%emt 0:00:22]} 34. Ra6 {[%emt 0:00:22]} Nd7 {[%emt 0:00:23]} 35. Ba4 {[%emt 0:00:13]} Nc5 {[%emt 0:00:14]} 36. Ra5 {[%emt 0:00:02]} Rxb6 {[%emt 0:00:08]} 37. Rxb6 {[%emt 0:00:01]} Rxb6 {[%emt 0:00:01]} 38. Ra8+ {[%emt 0:00:07]} Kf7 {[%emt 0:00:02]} 39. Bb5 {[%emt 0:00:03]} Bd7 {[%emt 0:00:30]} 40. Ra7 {[%emt 0:00:11]} Ke8 {[%emt 0:00:08]} 41. g4 {[%emt 0:00:31]} fxg4 {[%emt 0:00:27]} 42. Bxd7+ {[%emt 0:00:12]} Nxd7 {[%emt 0:00:01]} 43. Nxe4 {[%emt 0:00:02]} Rc6 {[%emt 0:00:15]} 44. Kg2 {[%emt 0:00:09]} Ke7 {[%emt 0:00:15]} 45. Nc3 {[%emt 0:00:20]} Ke6 {[%emt 0:00:11]} 46. Nd5 {[%emt 0:00:03]} Rxc4 {[%emt 0:00:12]} 47. Rxd7 {[%emt 0:00:04]} Kxd5 {[%emt 0:00:01]} 48. Rxg7 {[%emt 0:00:01]} h6 {[%emt 0:00:11]} 49. Rg6 {[%emt 0:00:17]} Ke5 {[%emt 0:00:19]} 50. Rxh6 {[%emt 0:00:04]} Rc8 {[%emt 0:00:11]} 51. Rg6 {[%emt 0:00:15]} Rh8 {[%emt 0:00:01]} 52. h6 {[%emt 0:00:10]} d5 {[%emt 0:00:09]} 53. Kg3 {[%emt 0:00:05]} Kf5 {[%emt 0:00:01]} 54. Rd6 {[%emt 0:00:05]} Ke5 {[%emt 0:00:05]} 55. Ra6 {[%emt 0:00:11]} Kf5 {[%emt 0:00:01]} 56. Kh4 {[%emt 0:00:09]} Rc8 {[%emt 0:00:24]} 57. Ra4 {[%emt 0:00:35]} Kg6 {[%emt 0:00:17]} 58. Ra6+ {[%emt 0:00:02]} Kf5 {[%emt 0:00:09]} 59. h7 {[%emt 0:00:09]} Rc1 {[%emt 0:00:07]} 60. Rf6+ {[%emt 0:00:02]} 1-0

[Event "FIDE Open World Rapid 2024"]
[Site "New York"]
[Date "2024.12.27"]
[Round "7.18"]
[White "Durarbayli, Vasif"]
[Black "Dubov, Daniil"]
[Result "1/2-1/2"]
[ECO "C45"]
[WhiteElo "2622"]
[BlackElo "2693"]
[Annotator "ChessBase"]
[PlyCount "39"]
[EventDate "2024.12.14"]
[EventType "swiss"]
[EventCountry "USA"]
[SourceTitle "playchess.com"]
[Source "ChessBase"]
[SourceQuality "1"]
[TimeControl "900+10"]

1. e4 {[%emt 0:00:01]} e5 {[%emt 0:00:03]} 2. Nf3 {[%emt 0:00:01]} Nc6 {[%emt 0:00:01]} 3. d4 {[%emt 0:00:01]} exd4 {[%emt 0:00:01]} 4. Nxd4 {[%emt 0:00:01]} Nf6 {[%emt 0:00:03]} 5. Nxc6 {[%emt 0:00:02]} bxc6 {[%emt 0:00:02]} 6. e5 {[%emt 0:00:00]} Qe7 {[%emt 0:00:03]} 7. Qe2 {[%emt 0:00:02]} Nd5 {[%emt 0:00:02]} 8. h4 {[%emt 0:00:01]} Rb8 {[%emt 0:00:03]} 9. b3 {[%emt 0:01:40]} Qb4+ {[%emt 0:01:00]} 10. Bd2 {[%emt 0:00:06]} Qb6 {[%emt 0:00:22]} 11. Rh3 {[%emt 0:01:20]} Bc5 {[%emt 0:00:25]} 12. c4 {[%emt 0:00:57]} Nb4 {[%emt 0:00:55]} 13. Bc3 {[%emt 0:00:23]} Bd4 {[%emt 0:02:42]} 14. a3 {[%emt 0:00:50]} Qa5 {[%emt 0:00:23]} 15. Rg3 {[%emt 0:02:56]} O-O {[%emt 0:01:51]} 16. Kd1 {[%emt 0:03:05]} Bxc3 {[%emt 0:00:30]} 17. Nxc3 {[%emt 0:00:05]} Na6 {[%emt 0:00:38]} 18. Kc2 {[%emt 0:01:23]} d5 {[%emt 0:00:46]} 19. Qf3 {[%emt 0:01:02]} d4 {[%emt 0:02:00]} 20. Rxg7+ {[%emt 0:01:45]} 1/2-1/2

[Event "FIDE Open World Rapid 2024"]
[Site "New York"]
[Date "2024.12.27"]
[Round "7.18"]
[White "Kadric, Denis"]
[Black "Macovei, Andrei"]
[Result "1-0"]
[ECO "C55"]
[WhiteElo "2544"]
[BlackElo "2477"]
[Annotator "ChessBase"]
[PlyCount "99"]
[EventDate "2024.12.14"]
[EventType "swiss"]
[EventCountry "USA"]
[SourceTitle "playchess.com"]
[Source "ChessBase"]
[SourceQuality "1"]
[TimeControl "900+10"]

1. e4 {[%emt 0:00:02]} e5 {[%emt 0:00:01]} 2. Nf3 {[%emt 0:00:01]} Nc6 {[%emt 0:00:01]} 3. Bc4 {[%emt 0:00:01]} Nf6 {[%emt 0:00:06]} 4. d3 {[%emt 0:00:01]} h6 {[%emt 0:00:02]} 5. a4 {[%emt 0:00:10]} d6 {[%emt 0:00:02]} 6. a5 {[%emt 0:00:01]} a6 {[%emt 0:00:01]} 7. Nc3 {[%emt 0:00:01]} g6 {[%emt 0:00:02]} 8. h3 {[%emt 0:00:02]} Bg7 {[%emt 0:00:01]} 9. Be3 {[%emt 0:00:01]} O-O {[%emt 0:00:05]} 10. g4 {[%emt 0:00:09]} Nh7 {[%emt 0:01:16]} 11. Qd2 {[%emt 0:00:23]} Nd4 {[%emt 0:00:02]} 12. Bxd4 {[%emt 0:00:41]} exd4 {[%emt 0:00:01]} 13. Ne2 {[%emt 0:00:02]} Be6 {[%emt 0:02:08]} 14. Bxe6 {[%emt 0:05:43]} fxe6 {[%emt 0:00:01]} 15. Nfxd4 {[%emt 0:00:01]} Bxd4 {[%emt 0:03:16]} 16. Nxd4 {[%emt 0:00:02]} Qf6 {[%emt 0:00:01]} 17. Qe3 {[%emt 0:03:47]} e5 {[%emt 0:02:56]} 18. Nb3 {[%emt 0:02:38]} Ng5 {[%emt 0:00:08]} 19. Nd2 {[%emt 0:00:01]} Ne6 {[%emt 0:02:35]} 20. O-O-O {[%emt 0:01:23]} Kg7 {[%emt 0:00:30]} 21. Rdf1 {[%emt 0:00:20]} Nd4 {[%emt 0:02:45]} 22. c3 {[%emt 0:00:03]} Ne6 {[%emt 0:00:58]} 23. h4 {[%emt 0:00:07]} Qf4 {[%emt 0:00:46]} 24. Qxf4 {[%emt 0:00:06]} Rxf4 {[%emt 0:00:05]} 25. f3 {[%emt 0:00:05]} Raf8 {[%emt 0:00:11]} 26. Kc2 {[%emt 0:00:20]} R4f7 {[%emt 0:00:11]} 27. Rf2 {[%emt 0:00:30]} Nf4 {[%emt 0:00:06]} 28. Nc4 {[%emt 0:00:21]} Ne6 {[%emt 0:00:16]} 29. Rhf1 {[%emt 0:00:02]} Nf4 {[%emt 0:00:11]} 30. Nd2 {[%emt 0:00:28]} Nh3 {[%emt 0:00:03]} 31. Rh2 {[%emt 0:00:01]} Nf4 {[%emt 0:00:01]} 32. Rg1 {[%emt 0:00:18]} Kh7 {[%emt 0:00:08]} 33. Rg3 {[%emt 0:00:16]} Kg7 {[%emt 0:00:34]} 34. Nc4 {[%emt 0:00:09]} Kh7 {[%emt 0:00:03]} 35. Ne3 {[%emt 0:00:15]} Ne6 {[%emt 0:00:01]} 36. Rf2 {[%emt 0:00:06]} Nf4 {[%emt 0:00:20]} 37. b4 {[%emt 0:00:12]} Kg7 {[%emt 0:00:44]} 38. h5 {[%emt 0:00:11]} gxh5 {[%emt 0:00:34]} 39. gxh5+ {[%emt 0:00:01]} Kh7 {[%emt 0:00:00]} 40. Nf5 {[%emt 0:00:12]} Nxh5 {[%emt 0:00:09]} 41. Rh3 {[%emt 0:00:06]} Rxf5 {[%emt 0:00:01]} 42. exf5 {[%emt 0:00:01]} Rxf5 {[%emt 0:00:01]} 43. Rfh2 {[%emt 0:00:16]} Kg6 {[%emt 0:00:00]} 44. Kd2 {[%emt 0:00:32]} Rg5 {[%emt 0:00:02]} 45. Ke3 {[%emt 0:00:06]} Rf5 {[%emt 0:00:02]} 46. Rh4 {[%emt 0:00:23]} Rg5 {[%emt 0:00:05]} 47. c4 {[%emt 0:00:16]} Rf5 {[%emt 0:00:11]} 48. b5 {[%emt 0:00:35]} axb5 {[%emt 0:00:29]} 49. cxb5 {[%emt 0:00:02]} e4 {[%emt 0:00:01]} 50. Rxh5 {[%emt 0:00:09]} 1-0

[Event "FIDE Open World Rapid 2024"]
[Site "New York"]
[Date "2024.12.27"]
[Round "7.19"]
[White "Chirila, Ioan-Cristian"]
[Black "Degenbaev, Aziz"]
[Result "1-0"]
[ECO "A71"]
[WhiteElo "2530"]
[BlackElo "2260"]
[Annotator "ChessBase"]
[PlyCount "47"]
[EventDate "2024.12.14"]
[EventType "swiss"]
[EventCountry "USA"]
[SourceTitle "playchess.com"]
[Source "ChessBase"]
[SourceQuality "1"]
[TimeControl "900+10"]

1. d4 {[%emt 0:00:04]} Nf6 {[%emt 0:00:01]} 2. c4 {[%emt 0:00:03]} g6 {[%emt 0:00:02]} 3. Nc3 {[%emt 0:00:06]} Bg7 {[%emt 0:00:01]} 4. e4 {[%emt 0:00:11]} d6 {[%emt 0:00:02]} 5. Be2 {[%emt 0:00:02]} O-O {[%emt 0:00:03]} 6. Bg5 {[%emt 0:00:01]} c5 {[%emt 0:00:18]} 7. d5 {[%emt 0:00:02]} e6 {[%emt 0:00:04]} 8. Nf3 {[%emt 0:00:24]} exd5 {[%emt 0:00:02]} 9. cxd5 {[%emt 0:00:16]} Re8 {[%emt 0:00:16]} 10. Nd2 {[%emt 0:00:13]} a6 {[%emt 0:02:16]} 11. a4 {[%emt 0:00:06]} Nbd7 {[%emt 0:00:01]} 12. O-O {[%emt 0:00:17]} Qc7 {[%emt 0:00:19]} 13. Qc2 {[%emt 0:02:19]} Ne5 {[%emt 0:01:09]} 14. h3 {[%emt 0:00:33]} c4 {[%emt 0:01:31]} 15. f4 {[%emt 0:01:25]} Nd3 {[%emt 0:00:14]} 16. Nxc4 {[%emt 0:00:29]} Nb4 {[%emt 0:02:13]} 17. Qb1 {[%emt 0:01:24]} Nfxd5 {[%emt 0:01:50]} 18. exd5 {[%emt 0:00:10]} Bf5 {[%emt 0:00:01]} 19. Qd1 {[%emt 0:00:25]} Nc2 {[%emt 0:01:14]} 20. Rc1 {[%emt 0:00:54]} Bxc3 {[%emt 0:02:30]} 21. bxc3 {[%emt 0:00:31]} b5 {[%emt 0:00:01]} 22. Bd3 {[%emt 0:01:15]} Qc5+ {[%emt 0:02:44]} 23. Kh2 {[%emt 0:00:01]} bxc4 {[%emt 0:01:00]} 24. Bxc2 {[%emt 0:00:05]} 1-0